fUSD/lending_fUSD_20260214
["ID","MTS","AMOUNT","RATE_DAILY","PERIOD"]
[405383455,1771108265246,-500.0,0.0004,9]
[405383456,1771108265257,-1192.16,0.0004,15]
[405383457,1771108265267,-500.0,0.0004,9]
[405383458,1771108265277,-4321.29,0.0004,9]
[405383459,1771108265287,-644.45,0.0004,9]
[405383460,1771108265297,-500.0,0.0004,9]
[405383461,1771108265307,-509.47,0.0004,9]
[405383462,1771108265316,-500.0,0.0004,9]
[405383463,1771108265327,-750.76,0.0004,9]
[405383464,1771108265336,-500.0,0.0004,9]
[405383465,1771108265346,-5753.87,0.0004,9]
[405383466,1771108265357,-500.0,0.0004,9]
[405383467,1771108265367,-500.0,0.0004,9]
[405383468,1771108265378,-500.0,0.0004,9]
[405383469,1771108265387,-500.0,0.0004,9]
[405383470,1771108265398,-500.0,0.0004,9]
[405383471,1771108265409,-500.0,0.0004,9]
[405383472,1771108265419,-620.05234386,0.0004,15]
[405383473,1771108265429,-694.44,0.0004,9]
[405383474,1771108265439,-874.73,0.0004,9]
[405383475,1771108265449,-500.0,0.0004,9]
[405383476,1771108265459,-500.0,0.0004,9]
[405383477,1771108265470,-500.0,0.0004,9]
[405383478,1771108265480,-500.0,0.0004,9]
[405383479,1771108265490,-500.0,0.0004,9]
[405383480,1771108265501,-730.0,0.0004,9]
[405383481,1771108265510,-500.0,0.0004,9]
[405383482,1771108265520,-500.0,0.0004,9]
[405383483,1771108265535,-500.0,0.0004,9]
[405383484,1771108265544,-2000.0,0.00040016,5]
[405383485,1771108265554,-2000.0,0.00040016,5]
[405383486,1771108265564,-1448.85583062,0.00040016,5]
[405383487,1771108265575,-1511.63916138,0.00040016,5]
[405383488,1771108265585,-929.9949039,0.00040016,5]
[405383489,1771108265596,-1001.20147665,0.00040021,5]
[405383490,1771108265606,-1000.0,0.00040021,5]
[405383491,1771108265617,-1000.0,0.00040021,5]
[405383492,1771108265627,-268.63,0.00040162,90]
[405383493,1771108265637,-150.0,0.00040165,2]
[405383494,1771108265647,-15359.54829538,0.00040273,9]
[405383495,1771108265657,-500.0,0.00040273,9]
[405383496,1771108265667,-500.0,0.00040273,9]
[405383497,1771108265676,-500.0,0.00040273,9]
[405383498,1771108265686,-500.0,0.00040273,9]
[405383499,1771108265696,-500.0,0.00040273,9]
[405383500,1771108265706,-500.0,0.00040273,9]
[405383501,1771108265716,-500.0,0.00040273,9]
[405383502,1771108265726,-500.0,0.00040273,9]
[405383503,1771108265736,-500.0,0.00040273,9]
[405383504,1771108265747,-500.0,0.00040273,9]
[405383505,1771108265758,-500.0,0.00040273,9]
[405383506,1771108265769,-500.0,0.00040273,9]
[405383507,1771108265780,-600.25,0.00040273,9]
[405383508,1771108265790,-500.0,0.00040273,9]
[405383509,1771108265799,-500.0,0.00040273,9]
[405383510,1771108265809,-500.0,0.00040273,9]
[405383511,1771108265819,-1523.24,0.00040273,9]
[405383512,1771108265829,-807.32,0.00040273,9]
[405383513,1771108265838,-500.0,0.00040273,9]
[405383514,1771108265847,-500.0,0.00040273,120]
[405383515,1771108265858,-500.0,0.00040273,9]
[405383516,1771108265868,-500.0,0.00040273,9]
[405383517,1771108265879,-500.0,0.00040273,9]
[405383518,1771108265889,-500.0,0.00040273,9]
[405383519,1771108265899,-500.0,0.00040273,9]
[405383520,1771108265909,-650.69,0.00040273,9]
[405383521,1771108265919,-1680.66,0.00040273,9]
[405383522,1771108265930,-6340.64,0.00040273,9]
[405383523,1771108265942,-500.0,0.00040273,9]
[405383524,1771108265954,-500.0,0.00040273,9]
[405383525,1771108265964,-500.0,0.00040273,9]
[405383526,1771108265975,-500.0,0.00040273,9]
[405383527,1771108265984,-500.0,0.00040273,9]
[405383528,1771108265994,-500.0,0.00040273,9]
[405383529,1771108266003,-500.0,0.00040273,9]
[405383530,1771108266013,-501.46,0.00040273,9]
[405383531,1771108266024,-500.0,0.00040273,9]
[405383532,1771108266034,-436.52492787,0.00040273,9]
[405383533,1771108266044,-500.0,0.00040273,9]
[405383534,1771108266053,-500.0,0.00040273,9]
[405383535,1771108266063,-500.0,0.00040273,9]
[405383536,1771108266073,-3606.02,0.00040273,9]
[405383537,1771108266084,-4408.87,0.00040273,9]
[405383538,1771108266094,-500.0,0.00040273,9]
[405383539,1771108266104,-500.0,0.00040273,9]
[405383540,1771108266113,-500.0,0.00040273,9]
[405383541,1771108266123,-500.0,0.00040273,9]
[405383542,1771108266133,-500.0,0.00040273,9]
[405383543,1771108266143,-1062.55,0.00040273,9]
[405383544,1771108266154,-500.0,0.00040273,9]
[405383545,1771108266163,-500.0,0.00040273,9]
[405383546,1771108266173,-500.0,0.00040273,9]
[405383547,1771108266184,-1192.16,0.00040273,15]
[405383548,1771108266194,-500.0,0.00040273,9]
[405383549,1771108266204,-4321.29,0.00040273,9]
[405383550,1771108266214,-644.45,0.00040273,9]
[405383551,1771108266227,-500.0,0.00040273,9]
[405383552,1771108266237,-509.47,0.00040273,9]
[405383553,1771108266247,-500.0,0.00040273,9]
[405383554,1771108266257,-750.76,0.00040273,9]
[405383555,1771108266267,-500.0,0.00040273,9]
[405383556,1771108266277,-5753.87,0.00040273,9]
[405383557,1771108266287,-500.0,0.00040273,9]
[405383558,1771108266297,-500.0,0.00040273,9]
[405383559,1771108266307,-500.0,0.00040273,9]
[405383560,1771108266317,-500.0,0.00040273,9]
[405383561,1771108266327,-500.0,0.00040273,9]
[405383562,1771108266337,-500.0,0.00040273,9]
[405383563,1771108266347,-694.44,0.00040273,9]
[405383564,1771108266356,-874.73,0.00040273,9]
[405383565,1771108266366,-500.0,0.00040273,9]
[405383566,1771108266376,-500.0,0.00040273,9]
[405383567,1771108266386,-500.0,0.00040273,9]
[405383568,1771108266395,-500.0,0.00040273,9]
[405383569,1771108266405,-500.0,0.00040273,9]
[405383570,1771108266414,-730.0,0.00040273,9]
[405383571,1771108266424,-500.0,0.00040273,9]
[405383572,1771108266434,-500.0,0.00040273,9]
[405383573,1771108266444,-500.0,0.00040273,9]
[405383574,1771108266455,-1999.0,0.0004041,120]
[405383575,1771108266465,-512.0,0.00040529,22]
[405383576,1771108266478,-15359.54829538,0.00040547,9]
[405383577,1771108266488,-5800.0,0.00040547,14]
[405383578,1771108266497,-500.0,0.00040547,9]
[405383579,1771108266507,-500.0,0.00040547,9]
[405383580,1771108266517,-500.0,0.00040547,9]
[405383581,1771108266529,-599.12539052,0.00040547,9]
[405383582,1771108266539,-5800.0,0.00040547,14]
[405383583,1771108266550,-500.0,0.00040547,9]
[405383584,1771108266559,-500.0,0.00040547,9]
[405383585,1771108266570,-180.31566856,0.00040547,9]
[405383586,1771108266580,-500.0,0.00040547,9]
[405383587,1771108266590,-500.0,0.00040547,9]
[405383588,1771108266601,-500.0,0.00040547,9]
[405383589,1771108266610,-500.0,0.00040547,9]
[405383590,1771108266620,-500.0,0.00040547,9]
[405383591,1771108266629,-600.25,0.00040547,9]
[405383592,1771108266639,-500.0,0.00040547,9]
[405383593,1771108266648,-500.0,0.00040547,9]
[405383594,1771108266658,-500.0,0.00040547,9]
[405383595,1771108266667,-1523.24,0.00040547,9]
[405383596,1771108266677,-807.32,0.00040547,9]
[405383597,1771108266686,-500.0,0.00040547,9]
[405383598,1771108266696,-500.0,0.00040547,120]
[405383599,1771108266705,-500.0,0.00040547,9]
[405383600,1771108266715,-500.0,0.00040547,9]
[405383601,1771108266727,-500.0,0.00040547,9]
[405383602,1771108266736,-500.0,0.00040547,9]
[405383603,1771108266746,-500.0,0.00040547,9]
[405383604,1771108266755,-650.69,0.00040547,9]
[405383605,1771108266765,-1680.66,0.00040547,9]
[405383606,1771108266775,-6340.64,0.00040547,9]
[405383607,1771108266785,-500.0,0.00040547,9]
[405383608,1771108266794,-500.0,0.00040547,9]
[405383609,1771108266804,-500.0,0.00040547,9]
[405383610,1771108266813,-500.0,0.00040547,9]
[405383611,1771108266822,-500.0,0.00040547,9]
[405383612,1771108266831,-500.0,0.00040547,9]
[405383613,1771108266841,-500.0,0.00040547,9]
[405383614,1771108266851,-501.46,0.00040547,9]
[405383615,1771108266861,-500.0,0.00040547,9]
[405383616,1771108266871,-500.0,0.00040547,9]
[405383617,1771108266880,-500.0,0.00040547,9]
[405383618,1771108266890,-500.0,0.00040547,9]
[405383619,1771108266899,-3606.02,0.00040547,9]
[405383620,1771108266909,-4408.87,0.00040547,9]
[405383621,1771108266919,-500.0,0.00040547,9]
[405383622,1771108266929,-500.0,0.00040547,9]
[405383623,1771108266939,-500.0,0.00040547,9]
[405383624,1771108266948,-500.0,0.00040547,9]
[405383625,1771108266958,-500.0,0.00040547,9]
[405383626,1771108266968,-1062.55,0.00040547,9]
[405383627,1771108266978,-500.0,0.00040547,9]
[405383628,1771108266988,-500.0,0.00040547,9]
[405383629,1771108266998,-500.0,0.00040547,9]
[405383630,1771108267008,-1192.16,0.00040547,15]
[405383631,1771108267018,-500.0,0.00040547,9]
[405383632,1771108267029,-4321.29,0.00040547,9]
[405383633,1771108267040,-644.45,0.00040547,9]
[405383634,1771108267051,-500.0,0.00040547,9]
[405383635,1771108267063,-509.47,0.00040547,9]
[405383636,1771108267073,-500.0,0.00040547,9]
[405383637,1771108267082,-750.76,0.00040547,9]
[405383638,1771108267094,-500.0,0.00040547,9]
[405383639,1771108267106,-5753.87,0.00040547,9]
[405383640,1771108267117,-500.0,0.00040547,9]
[405383641,1771108267128,-500.0,0.00040547,9]
[405383642,1771108267140,-500.0,0.00040547,9]
[405383643,1771108267150,-500.0,0.00040547,9]
[405383644,1771108267161,-500.0,0.00040547,9]
[405383645,1771108267171,-500.0,0.00040547,9]
[405383646,1771108267180,-694.44,0.00040547,9]
[405383647,1771108267190,-874.73,0.00040547,9]
[405383648,1771108267200,-500.0,0.00040547,9]
[405383649,1771108267209,-500.0,0.00040547,9]
[405383650,1771108267219,-500.0,0.00040547,9]
[405383651,1771108267229,-500.0,0.00040547,9]
[405383652,1771108267239,-500.0,0.00040547,9]
[405383653,1771108267249,-730.0,0.00040547,9]
[405383654,1771108267259,-500.0,0.00040547,9]
[405383655,1771108267269,-500.0,0.00040547,9]
[405383656,1771108267279,-500.0,0.00040547,9]
[405383657,1771108267289,-2500.0,0.00040564,5]
[405383658,1771108267299,-1500.0,0.00040568,5]
[405383659,1771108267309,-322.84,0.00040568,5]
[405383660,1771108267319,-672.66563398,0.0004057,120]
[405383661,1771108267328,-499.0,0.0004059,120]
[405383662,1771108267338,-152.0,0.000408,120]
[405383663,1771108267349,-99635.55,0.000408,14]
[405383664,1771108267359,-12225.28097479,0.00040821,9]
[405383665,1771108267370,-500.0,0.00040821,9]
[405383666,1771108267380,-500.0,0.00040821,9]
[405383667,1771108267391,-500.0,0.00040821,9]
[405383668,1771108267401,-500.0,0.00040821,9]
[405383669,1771108267411,-500.0,0.00040821,9]
[405383670,1771108267421,-500.0,0.00040821,9]
[405383671,1771108267431,-500.0,0.00040821,9]
[405383672,1771108267441,-500.0,0.00040821,9]
[405383673,1771108267452,-500.0,0.00040821,9]
[405383674,1771108267462,-500.0,0.00040821,9]
[405383675,1771108267473,-600.25,0.00040821,9]
[405383676,1771108267483,-500.0,0.00040821,9]
[405383677,1771108267492,-500.0,0.00040821,9]
[405383678,1771108267502,-500.0,0.00040821,9]
[405383679,1771108267512,-1523.24,0.00040821,9]
[405383680,1771108267524,-807.32,0.00040821,9]
[405383681,1771108267536,-500.0,0.00040821,9]
[405383682,1771108267545,-500.0,0.00040821,120]
[405383683,1771108267555,-500.0,0.00040821,9]
[405383684,1771108267567,-500.0,0.00040821,9]
[405383685,1771108267577,-500.0,0.00040821,9]
[405383686,1771108267587,-500.0,0.00040821,9]
[405383687,1771108267597,-500.0,0.00040821,9]
[405383688,1771108267609,-650.69,0.00040821,9]
[405383689,1771108267619,-1680.66,0.00040821,9]
[405383690,1771108267630,-6340.64,0.00040821,9]
[405383691,1771108267813,-271.96490843,0.00040821,9]
[405383692,1771108267824,-500.0,0.00040821,9]
[405383693,1771108267835,-500.0,0.00040821,9]
[405383694,1771108267844,-500.0,0.00040821,9]
[405383695,1771108267863,-500.0,0.00040821,9]
[405383696,1771108267875,-500.0,0.00040821,9]
[405383697,1771108267885,-500.0,0.00040821,9]
[405383698,1771108267896,-501.46,0.00040821,9]
[405383699,1771108267906,-500.0,0.00040821,9]
[405383700,1771108267917,-500.0,0.00040821,9]
[405383701,1771108267927,-500.0,0.00040821,9]
[405383702,1771108267938,-500.0,0.00040821,9]
[405383703,1771108267949,-3606.02,0.00040821,9]
[405383704,1771108267960,-4408.87,0.00040821,9]
[405383705,1771108267970,-500.0,0.00040821,9]
[405383706,1771108267981,-500.0,0.00040821,9]
[405383707,1771108267991,-500.0,0.00040821,9]
[405383708,1771108268002,-500.0,0.00040821,9]
[405383709,1771108268012,-500.0,0.00040821,9]
[405383710,1771108268023,-1062.55,0.00040821,9]
[405383711,1771108268034,-500.0,0.00040821,9]
[405383712,1771108268044,-500.0,0.00040821,9]
[405383713,1771108268055,-500.0,0.00040821,9]
[405383714,1771108268065,-1192.16,0.00040821,15]
[405383715,1771108268076,-500.0,0.00040821,9]
[405383716,1771108268087,-4321.29,0.00040821,9]
[405383717,1771108268097,-644.45,0.00040821,9]
[405383718,1771108268108,-500.0,0.00040821,9]
[405383719,1771108268118,-509.47,0.00040821,9]
[405383720,1771108268128,-500.0,0.00040821,9]
[405383721,1771108268138,-750.76,0.00040821,9]
[405383722,1771108268149,-500.0,0.00040821,9]
[405383723,1771108268159,-5753.87,0.00040821,9]
[405383724,1771108268170,-500.0,0.00040821,9]
[405383725,1771108268180,-500.0,0.00040821,9]
[405383726,1771108268191,-500.0,0.00040821,9]
[405383727,1771108268202,-500.0,0.00040821,9]
[405383728,1771108268212,-500.0,0.00040821,9]
[405383729,1771108268224,-500.0,0.00040821,9]
[405383730,1771108268234,-694.44,0.00040821,9]
[405383731,1771108268244,-874.73,0.00040821,9]
[405383732,1771108268254,-500.0,0.00040821,9]
[405383733,1771108268265,-500.0,0.00040821,9]
[405383734,1771108268275,-500.0,0.00040821,9]
[405383735,1771108268285,-500.0,0.00040821,9]
[405383736,1771108268295,-500.0,0.00040821,9]
[405383737,1771108268305,-730.0,0.00040821,9]
[405383738,1771108268315,-500.0,0.00040821,9]
[405383739,1771108268326,-500.0,0.00040821,9]
[405383740,1771108268336,-500.0,0.00040821,9]
[405383741,1771108268347,-174.7732489,0.00040835,10]
[405383742,1771108268358,-151.0,0.000409,120]
[405383743,1771108268368,-10000.0,0.00041,120]
[405383744,1771108268378,-8149.09114605,0.00041,5]
[405383745,1771108268388,-323.07692308,0.00041068,120]
[405383746,1771108268398,-276.92307692,0.00041068,120]
[405383747,1771108268409,-300.0,0.00041068,22]
[405383748,1771108268419,-500.0,0.00041095,120]
[405383749,1771108268429,-500.0,0.00041095,120]
[405383750,1771108268439,-636.83696445,0.00041095,120]
[405383751,1771108268450,-500.0,0.00041095,9]
[405383752,1771108268459,-500.0,0.00041095,9]
[405383753,1771108268470,-613.99848679,0.00041095,9]
[405383754,1771108268481,-419.42,0.00041095,120]
[405383755,1771108268490,-500.0,0.00041095,120]
[405383756,1771108268501,-500.0,0.00041095,120]
[405383757,1771108268512,-500.0,0.00041095,120]
[405383758,1771108268524,-500.0,0.00041095,120]
[405383759,1771108268535,-500.0,0.00041095,120]
[405383760,1771108268546,-500.0,0.00041095,120]
[405383761,1771108268556,-600.25,0.00041095,120]
[405383762,1771108268566,-500.0,0.00041095,120]
[405383763,1771108268577,-500.0,0.00041095,120]
[405383764,1771108268588,-500.0,0.00041095,120]
[405383765,1771108268598,-1523.24,0.00041095,120]
[405383766,1771108268609,-807.32,0.00041095,120]
[405383767,1771108268620,-500.0,0.00041095,120]
[405383768,1771108268630,-500.0,0.00041095,120]
[405383769,1771108268640,-366.94642995,0.00041095,120]
[405383770,1771108268650,-500.0,0.00041095,120]
[405383771,1771108268661,-500.0,0.00041095,120]
[405383772,1771108268670,-397.42139343,0.00041095,120]
[405383773,1771108268680,-597.76207376,0.00041095,120]
[405383774,1771108268691,-650.69,0.00041095,120]
[405383775,1771108268701,-1680.66,0.00041095,120]
[405383776,1771108268712,-6340.64,0.00041095,120]
[405383777,1771108268722,-500.0,0.00041095,120]
[405383778,1771108268732,-619.53099504,0.00041095,120]
[405383779,1771108268742,-500.0,0.00041095,120]
[405383780,1771108268751,-500.0,0.00041095,120]
[405383781,1771108268761,-500.0,0.00041095,9]
[405383782,1771108268771,-533.58576223,0.00041095,9]
[405383783,1771108268784,-500.0,0.00041095,120]
[405383784,1771108268794,-500.0,0.00041095,120]
[405383785,1771108268804,-501.46,0.00041095,120]
[405383786,1771108268814,-306.41300195,0.00041095,120]
[405383787,1771108268825,-500.0,0.00041095,120]
[405383788,1771108268835,-500.0,0.00041095,120]
[405383789,1771108268846,-500.0,0.00041095,120]
[405383790,1771108268856,-3606.02,0.00041095,120]
[405383791,1771108268865,-4408.87,0.00041095,120]
[405383792,1771108268876,-500.0,0.00041095,120]
[405383793,1771108268885,-500.0,0.00041095,120]
[405383794,1771108268895,-500.0,0.00041095,120]
[405383795,1771108268905,-500.0,0.00041095,120]
[405383796,1771108268915,-547.61184623,0.00041095,120]
[405383797,1771108268925,-1999.0,0.00041095,120]
[405383798,1771108268935,-1062.55,0.00041095,120]
[405383799,1771108268945,-500.0,0.00041095,120]
[405383800,1771108268955,-500.0,0.00041095,60]
[405383801,1771108268965,-180.86812799,0.00041095,120]
[405383802,1771108268976,-1192.16,0.00041095,15]
[405383803,1771108268986,-473.87134285,0.00041095,120]
[405383804,1771108268996,-4321.29,0.00041095,120]
[405383805,1771108269006,-644.45,0.00041095,120]
[405383806,1771108269016,-500.0,0.00041095,120]
[405383807,1771108269026,-509.47,0.00041095,120]
[405383808,1771108269036,-750.76,0.00041095,120]
[405383809,1771108269046,-500.0,0.00041095,120]
[405383810,1771108269056,-5753.87,0.00041095,120]
[405383811,1771108269066,-500.0,0.00041095,120]
[405383812,1771108269077,-500.0,0.00041095,120]
[405383813,1771108269087,-500.0,0.00041095,120]
[405383814,1771108269097,-500.0,0.00041095,120]
[405383815,1771108269107,-500.0,0.00041095,120]
[405383816,1771108269117,-500.0,0.00041095,120]
[405383817,1771108269127,-694.44,0.00041095,120]
[405383818,1771108269137,-874.73,0.00041095,120]
[405383819,1771108269146,-221.39,0.00041095,120]
[405383820,1771108269156,-500.0,0.00041095,120]
[405383821,1771108269165,-500.0,0.00041095,120]
[405383822,1771108269176,-500.0,0.00041095,120]
[405383823,1771108269186,-500.0,0.00041095,120]
[405383824,1771108269195,-730.0,0.00041095,120]
[405383825,1771108269205,-500.0,0.00041095,120]
[405383826,1771108269215,-500.0,0.00041095,120]
[405383827,1771108269224,-506.89341009,0.00041095,120]
[405383828,1771108269234,-839.01,0.00041096,120]
[405383829,1771108269244,-19326.36,0.00041096,120]
[405383830,1771108269253,-2000.0,0.00041116,10]
[405383831,1771108269263,-417.2,0.0004112,30]
[405383832,1771108269273,-150.0,0.00041128,30]
[405383833,1771108269283,-180.33968239,0.00041128,30]
[405383834,1771108269292,-381.00262656,0.00041369,120]
[405383835,1771108269302,-500.0,0.00041369,120]
[405383836,1771108269311,-500.0,0.00041369,120]
[405383837,1771108269322,-500.0,0.00041369,120]
[405383838,1771108269331,-415.93633056,0.00041369,120]
[405383839,1771108269341,-500.0,0.00041369,120]
[405383840,1771108269351,-500.0,0.00041369,120]
[405383841,1771108269361,-600.25,0.00041369,120]
[405383842,1771108269370,-500.0,0.00041369,120]
[405383843,1771108269380,-500.0,0.00041369,120]
[405383844,1771108269390,-610.0238672,0.00041369,120]
[405383845,1771108269400,-1523.24,0.00041369,120]
[405383846,1771108269410,-807.32,0.00041369,120]
[405383847,1771108269421,-271.40501097,0.00041369,120]
[405383848,1771108269431,-500.0,0.00041369,120]
[405383849,1771108269440,-405.20960164,0.00041369,120]
[405383850,1771108269450,-500.0,0.00041369,120]
[405383851,1771108269461,-650.69,0.00041369,120]
[405383852,1771108269471,-1680.66,0.00041369,120]
[405383853,1771108269481,-6340.64,0.00041369,120]
[405383854,1771108269492,-500.0,0.00041369,120]
[405383855,1771108269501,-500.0,0.00041369,120]
[405383856,1771108269510,-500.0,0.00041369,120]
[405383857,1771108269524,-500.0,0.00041369,120]
[405383858,1771108269535,-500.0,0.00041369,120]
[405383859,1771108269548,-501.46,0.00041369,120]
[405383860,1771108269558,-500.0,0.00041369,120]
[405383861,1771108269570,-500.0,0.00041369,120]
[405383862,1771108269580,-500.0,0.00041369,120]
[405383863,1771108269591,-3606.02,0.00041369,120]
[405383864,1771108269603,-4408.87,0.00041369,120]
[405383865,1771108269614,-500.0,0.00041369,120]
[405383866,1771108269623,-500.0,0.00041369,120]
[405383867,1771108269634,-500.0,0.00041369,120]
[405383868,1771108269644,-500.0,0.00041369,120]
[405383869,1771108269659,-1062.55,0.00041369,120]
[405383870,1771108269669,-211.49576757,0.00041369,120]
[405383871,1771108269678,-500.0,0.00041369,60]
[405383872,1771108269688,-1192.16,0.00041369,15]
[405383873,1771108269698,-4321.29,0.00041369,120]
[405383874,1771108269708,-644.45,0.00041369,120]
[405383875,1771108269718,-500.0,0.00041369,120]
[405383876,1771108269727,-509.47,0.00041369,120]
[405383877,1771108269737,-750.76,0.00041369,120]
[405383878,1771108269747,-500.0,0.00041369,120]
[405383879,1771108269757,-5753.87,0.00041369,120]
[405383880,1771108269767,-500.0,0.00041369,120]
[405383881,1771108269777,-500.0,0.00041369,120]
[405383882,1771108269787,-500.0,0.00041369,120]
[405383883,1771108269796,-500.0,0.00041369,120]
[405383884,1771108269806,-500.0,0.00041369,120]
[405383885,1771108269816,-500.0,0.00041369,120]
[405383886,1771108269827,-694.44,0.00041369,120]
[405383887,1771108269837,-874.73,0.00041369,120]
[405383888,1771108269847,-500.0,0.00041369,120]
[405383889,1771108269858,-500.0,0.00041369,120]
[405383890,1771108269867,-156.72190473,0.00041369,120]
[405383891,1771108269877,-500.0,0.00041369,120]
[405383892,1771108269886,-730.0,0.00041369,120]
[405383893,1771108269897,-500.0,0.00041369,120]
[405383894,1771108269908,-500.0,0.00041369,120]
[405383895,1771108269918,-1036.1,0.00041462,30]
[405383896,1771108269929,-175.543101,0.00041519,120]
[405383897,1771108269939,-152.0,0.000416,120]
[405383898,1771108269949,-500.0,0.00041643,120]
[405383899,1771108269959,-500.0,0.00041643,120]
[405383900,1771108269971,-287.53930578,0.00041643,120]
[405383901,1771108269981,-500.0,0.00041643,120]
[405383902,1771108269991,-500.0,0.00041643,120]
[405383903,1771108270002,-600.25,0.00041643,120]
[405383904,1771108270012,-500.0,0.00041643,120]
[405383905,1771108270021,-500.0,0.00041643,120]
[405383906,1771108270031,-1523.24,0.00041643,120]
[405383907,1771108270041,-807.32,0.00041643,120]
[405383908,1771108270051,-500.0,0.00041643,120]
[405383909,1771108270060,-619.46049836,0.00041643,120]
[405383910,1771108270071,-650.69,0.00041643,120]
[405383911,1771108270081,-1680.66,0.00041643,120]
[405383912,1771108270092,-6340.64,0.00041643,120]
[405383913,1771108270104,-342.445964,0.00041643,120]
[405383914,1771108270114,-500.0,0.00041643,120]
[405383915,1771108270125,-500.0,0.00041643,120]
[405383916,1771108270139,-500.0,0.00041643,120]
[405383917,1771108270149,-500.0,0.00041643,120]
[405383918,1771108270159,-501.46,0.00041643,120]
[405383919,1771108270170,-500.0,0.00041643,120]
[405383920,1771108270180,-500.0,0.00041643,120]
[405383921,1771108270190,-500.0,0.00041643,120]
[405383922,1771108270201,-3606.02,0.00041643,120]
[405383923,1771108270211,-4408.87,0.00041643,120]
[405383924,1771108270222,-500.0,0.00041643,120]
[405383925,1771108270232,-500.0,0.00041643,120]
[405383926,1771108270242,-500.0,0.00041643,120]
[405383927,1771108270331,-500.0,0.00041643,120]
[405383928,1771108270342,-1062.55,0.00041643,120]
[405383929,1771108270352,-500.0,0.00041643,60]
[405383930,1771108270362,-1192.16,0.00041643,15]
[405383931,1771108270372,-4321.29,0.00041643,120]
[405383932,1771108270383,-644.45,0.00041643,120]
[405383933,1771108270393,-500.0,0.00041643,120]
[405383934,1771108270403,-509.47,0.00041643,120]
[405383935,1771108270412,-750.76,0.00041643,120]
[405383936,1771108270422,-500.0,0.00041643,120]
[405383937,1771108270432,-5753.87,0.00041643,120]
[405383938,1771108270443,-500.0,0.00041643,120]
[405383939,1771108270453,-500.0,0.00041643,120]
[405383940,1771108270464,-227.80387233,0.00041643,120]
[405383941,1771108270476,-500.0,0.00041643,120]
[405383942,1771108270486,-500.0,0.00041643,120]
[405383943,1771108270496,-500.0,0.00041643,120]
[405383944,1771108270505,-694.44,0.00041643,120]
[405383945,1771108270515,-874.73,0.00041643,120]
[405383946,1771108270525,-244.51114235,0.00041643,120]
[405383947,1771108270538,-522.57406192,0.00041643,120]
[405383948,1771108270547,-500.0,0.00041643,120]
[405383949,1771108270557,-730.0,0.00041643,120]
[405383950,1771108270567,-338.33866785,0.00041643,120]
[405383951,1771108270577,-500.0,0.00041643,120]
[405383952,1771108270586,-839.0,0.00041644,120]
[405383953,1771108270596,-1510.93637167,0.00041664,10]
[405383954,1771108270607,-10539.0,0.000417,117]